{"text_format":"1","workbook":"xlsx","n_sheets":1,"sheets":["Sheet1"],"not_rendered":{"charts":0,"images":0,"macros":1,"external_links":0,"defined_names":1,"comments":0,"pivot_tables":0},"unopened":[],"bounds":{"document_bytes":16777216,"sheet_cells":100000,"rows_first":2000,"rows_last":500,"rows_between":2000,"halvings":0,"cell_chars":16384,"cell_head_chars":4096},"cells_cut":0,"cells_raw":0,"read":"whole","date_system":"1900"}

{"sheet":"Sheet1","index":0,"n_rows":37,"n_cols":18,"rows_kept":37,"cut":false,"hidden":false,"merged":[[32,1,32,5],[36,0,36,5],[20,1,20,5],[33,1,33,5],[27,1,27,5],[28,1,28,5],[22,1,22,5],[23,1,23,5],[24,1,24,5],[25,1,25,5],[21,1,21,5],[35,1,35,5],[34,1,34,5],[26,1,26,5],[29,1,29,5],[30,1,30,5],[31,1,31,5],[19,1,19,5],[18,1,18,5],[11,7,12,11],[9,0,10,5],[9,7,10,15],[15,1,15,5],[13,11,13,12],[14,11,14,12],[15,11,15,12],[11,16,12,17],[2,8,8,13],[11,13,12,15],[4,14,5,15],[0,0,8,7],[0,15,1,15],[0,8,0,13]]}
["INSTRUCTIONS:  Use this form when a single information collection document involves multiple reporting and recordkeeping requirements.  The totals of the figures in cols. should be entered in item 13 of OMB-83-I:                  cols. (D) &/or (I) = 13a (respondent is only counted once); cols. F & I = 13b;         cols. H & K = 13c.                                                                                                                                                                                                                                                                                                       (F)Total/(D)Total = (E)Average     (H)Total/(F)Total = (G)Average     (K)Total/(I)Total = (J)Average\nNOTE:  The columns will calculate automatically.  If Col. E's response is something other than annually, i.e., 1/6 years, list as \"1/6\" & decimal will display.    \n",null,null,null,null,null,null,null,"TITLE OF INFORMATION COLLECTION DOCUMENT",null,null,null,null,null,"OMB NO.","0560-0176 "]
[]
[null,null,null,null,null,null,null,null,"Request for Geospatial Products and Services"]
[null,null,null,null,null,null,null,null,null,null,null,null,null,null,"DATE PREPARED"]
[null,null,null,null,null,null,null,null,null,null,null,null,null,null,"2021-09-08"]
[]
[]
[]
[]
["IDENTIFICATION OF REPORTING OR RECORDKEEPING REQUIREMENT",null,null,null,null,null,null,"ANNUAL BURDEN"]
[]
[null,null,null,null,null,null,null,"REPORTS",null,null,null,null,null,"RECORDS",null,null,"RESPONDENT COST"]
[]
[null,null,null,null,null,null,null,null,null,null,null,"TOTAL BURDEN HOURS",null,null,null,"TOTAL"]
[null,null,null,null,null,null,"FORMS NO (S)","NO. OF","NO OF","TOTAL ANNUAL","HOURS"," (Col. F x G)",null,"NO. OF ","ANNUAL ","RECORD-","COST","TOTAL"]
["SECTION OF","DESCRIPTION",null,null,null,null,"(If \"none\"","RESPONDENTS","RESPONSES","RESPONSES","PER  ","(H)",null,"RECORD-","HOURS PER","KEEPING HOURS","PER","COST"]
["REGS.",null,null,null,null,null,"so state)",null,"PER ","(Col. D x E)","RESPONSE",null,null,"KEEPERS","RECORD-","(Col. I x J)","HOUR","(Col. H x L)"]
[null,null,null,null,null,null,null,null,"RESPONDENT",null,null,"EXEMPT","NON-EXEMPT",null,"KEEPER"]
["(A)","(B)",null,null,null,null,"(C)","(D)","(E)","(F)","(G)",null,null,"(I)","(J)","(K)","(L)","(M)"]
["7 CFR 2.16","Request for Geospatial Products and Services",null,null,null,null,"FPAC-ISD-441",125,1,{"$f":"SUM(H20*I20)","v":125},0.25,null,{"$f":"SUM(J20*K20)","v":31.25},null,null,null,53.71,{"$f":"SUM(M20*Q20)","v":1678.4375}]
["7 CFR 2.16","Non-Form Request",null,null,null,null,"None",800,1,800,0.25,null,200,null,null,null,53.71,10742]
["7 CFR 2.16","Research and Preparation",null,null,null,null,"None",450,1,450,0.41665999999999997,null,187.49699999999999,null,null,null,53.71,10070.46387]
["7 CFR 2.16","Walk-in Customers",null,null,null,null,"None",10,1,10,1,null,10,null,null,null,53.71,537.1]
["7 CFR 2.16","Request for Custom Aerial Print",null,null,null,null,"FPAC-ISD-441B",10,1,10,0.1666,null,{"$f":"SUM(J24*K24)","v":1.6659999999999999},null,null,null,53.71,89.480859999999993]
["7 CFR 2.16","Non-Form Request",null,null,null,null,"None",15,1,15,0.16666,null,{"$f":"SUM(J25*K25)","v":2.4999000000000002},null,null,null,53.71,{"$f":"SUM(M25*Q25)","v":134.26962900000001}]
["7 CFR 2.16","Research and Preparation",null,null,null,null,"None",15,1,15,0.33,null,{"$f":"SUM(J26*K26)","v":4.95},null,null,null,53.71,265.86450000000002]
["7 CFR 2.16","Walk-in Customers",null,null,null,null,"None",1,1,1,1,null,1,null,null,null,53.71,53.71]
["7 CFR 2.16","GEO Service Quality Survey",null,null,null,null,"FPAC-ISD-441C",10,1,10,8.3299999999999999E-2,null,0.83299999999999996,null,null,null,53.71,44.740429999999996]
["7 CFR 2.16","Non-Form Request",null,null,null,null,"None",30,1,30,8.3333000000000004E-2,null,2.4999899999999999,null,null,null,53.71,134.2744629]
["8 CFR 2.16","One Time Credit Card Payment Authorization",null,null,null,null,"FPAC-ISD-441D",200,1,200,0.17,null,34,null,null,null,53.71,1826.14]
["9 CFR 2.16","Non-Form Request",null,null,null,null,"None",800,1,800,0.08,null,64,null," ",null,53.71,{"$f":"SUM(M31*Q31)","v":3437.44}]
["10 CFR 2.16","Request Preparation",null,null,null,null,"None",10,1,10,0.08,null,0.8,null,null,null,53.71,42.968000000000004]
["11 CFR 2.16","Walk-in Customers",null,null,null,null,"None",1,1,1,1,null,1,null,null,null,53.71,53.71]
[]
[null,"SUBTOTAL",null,null,null,null,null,null,null,{"$f":"SUM(J20:J34)","v":2477},null,{"$f":"SUM(L20:L24)","v":0},{"$f":"SUM(M20:M34)","v":541.99588999999992},null,null,{"$f":"SUM(P20:P34)","v":0},null,{"$f":"SUM(R20:R34)","v":29110.599251899996}]
[null,"TOTAL OF ALL PAGES",null,null,null,null,null,null,null,{"$f":"SUM(J35)","v":2477},null,{"$f":"SUM(L35)","v":0},{"$f":"SUM(M35)","v":541.99588999999992},null,null,{"$f":"SUM(P35)","v":0},null,{"$f":"SUM(R35)","v":29110.599251899996}]
["TOTAL - COLUMNS \"F\" AND \"I\" = OMB 83-I, 13b; COLUMNS \"H\" AND \"K\" = OMB 83-I, 13c",null,null,null,null,null,null,null,null,{"$f":"SUM(J36+N36)","v":2477},null,null,{"$f":"SUM(M36+P36)","v":541.99588999999992}]